Cogmind - Beta 17 @@@ ROGUE MODE // 2026.08.03 @ 17:49:48 Player: kite Result: Self-destructed Performance ------------- Evolutions (3) 1500 Regions Visited (7) 1400 Robots Destroyed (103) 515 Value Destroyed (2262) 2262 Prototype IDs (4) 80 Alien Tech Used (0) 0 Bonus (127) 127 TOTAL SCORE: 5884 Bonus ------- High Alert Combat Kills 113 Follower Combat Kills 35 Friendly Fire -21 Cogmind --------- Core Integrity 353/700 Matter 92/300 Energy 100/100 System Corruption 20% Temperature Cool (0) Movement Rolling (175) Ox7 Location -7/Waste Parts ------- > --- POWER (1) -------- (None) > --- PROPULSION (5) --- Wheel Wheel Wheel Compact Wheel > --- UTILITY (5) ------ Humpback Improved Signal Interpreter Improved Melee Analysis Suite Kinecellerator > --- WEAPON (2) ------- Flak Cannon (fused) Great Axe > --- INVENTORY (35) --- Light Treads Light Treads Light Treads Light Treads Light Treads Advanced Treads Medium Treads Compact Wheel Compact Wheel Cargo Storage Unit Compact Matter Pod (0) Advanced Visual Processing Unit Improved Sensor Array Improved Melee Analysis Suite Microactuators Transmission Jammer Layered Light Armor Plating Layered Light Armor Plating Tractor Beam Flak Cannon Flak Cannon Advanced EMP Blaster Advanced EMP Blaster Heavy Rocket Launcher Powered Hammer Powered Hammer Powered Hammer Powered Hammer Powered Hammer Great Axe Great Axe Great Axe Peak State ------------ > --- POWER ------------ Heavy Ion Engine > --- PROPULSION ------- Medium Treads Wheel Wheel Compact Wheel Compact Wheel > --- UTILITY ---------- Humpback Improved Signal Interpreter Improved Melee Analysis Suite Kinecellerator > --- WEAPON ----------- Flak Cannon Flak Cannon > --- INVENTORY -------- Light Treads Light Treads Light Treads Light Treads Light Treads Advanced Treads Wheel Wheel Compact Wheel Cargo Storage Unit Compact Matter Pod Advanced Visual Processing Unit Improved Sensor Array Improved Melee Analysis Suite Microactuators Transmission Jammer Layered Light Armor Plating Layered Light Armor Plating Tractor Beam Flak Cannon Advanced EMP Blaster Advanced EMP Blaster Heavy Rocket Launcher Powered Hammer Powered Hammer Powered Hammer Powered Hammer Powered Hammer Great Axe Great Axe Great Axe Great Axe [Rating: 39] Favorites ----------- Power Ion Engine Engine Ion Engine Propulsion Wheel Treads Light Treads Leg Aluminum Leg Wheel Wheel Utility Humpback Device Heat Sink Storage Humpback Processor Improved Signal Interpreter Hackware Hacking Suite Protection Core Shielding Weapon Heavy Flail Energy Gun Medium Laser Energy Cannon Beam Cannon Ballistic Gun Assault Rifle Ballistic Cannon Flak Cannon Launcher Advanced EMP Blaster Impact Weapon Heavy Flail Slashing Weapon Makeshift Sword Special Melee Weapon Improved Datajack Build | -11 -10 -10 -10 -9 -8 -7 -7 ------- Run | Yrd Mat Min Exi Min Mat Fac Was Slots Evolved 6 | . . . . . 4 2 . Power . | . . . . . . . . Propulsion 3 | . . . . . 3 . . Utility 3 | . . . . . 1 2 . Weapon . | . . . . . . . . Parts Attached 86 | 6 11 1 1 1 29 30 7 Power 7 | 1 1 . . . 4 1 . Engine 7 | 1 1 . . . 4 1 . Core . | . . . . . . . . Reactor . | . . . . . . . . Propulsion 31 | 2 3 . . . 12 9 5 Treads 4 | 2 . . . . . . 2 Leg 4 | . 3 . . . 1 . . Wheel 23 | . . . . . 11 9 3 Hover . | . . . . . . . . Flight . | . . . . . . . . Utility 26 | 1 4 1 1 . 6 13 . Device 7 | . 2 . . . 1 4 . Storage 7 | 1 1 1 1 . 2 1 . Processor 4 | . . . . . 2 2 . Hackware 2 | . . . . . . 2 . Protection 6 | . 1 . . . 1 4 . Artifact . | . . . . . . . . Weapon 22 | 2 3 . . 1 7 7 2 Energy Gun 1 | . 1 . . . . . . Energy Cannon 3 | . 2 . . 1 . . . Ballistic Gun 2 | 2 . . . . . . . Ballistic Cannon 3 | . . . . . . 1 2 Launcher 4 | . . . . . 2 2 . Special Weapon . | . . . . . . . . Impact Weapon 2 | . . . . . 1 1 . Slashing Weapon 6 | . . . . . 4 2 . Piercing Weapon . | . . . . . . . . Special Melee Weapon 1 | . . . . . . 1 . Unidentified Prototypes 4 | . . . . . 3 1 . Parts Lost 16 | . 3 . . . 5 6 2 Power 2 | . 1 . . . . 1 . Propulsion 12 | . 1 . . . 5 4 2 Utility 1 | . . . . . . 1 . Weapon 1 | . 1 . . . . . . Highest Loss Streak 4 | . 3 . . . 1 4 1 To Critical Strikes . | . . . . . . . . Average Backups 20 | 1 5 9 12 12 23 32 33 Power . | . . . . . 1 1 . Propulsion 6 | . 3 3 3 3 5 10 10 Utility 6 | . . 2 3 5 8 8 10 Weapon 6 | . 1 3 5 4 7 11 13 Tool/Special . | . . . . . . . . Unused Backups 37 | . . . 1 . 15 3 18 Power 2 | . . . . . 2 . . Propulsion 8 | . . . . . 1 1 6 Utility 14 | . . . . . 6 2 6 Weapon 13 | . . . 1 . 6 . 6 Tool/Special . | . . . . . . . . Average Slot Usage (%) 87 | . 95 100 74 78 85 90 92 Engine 10 | . 13 14 14 14 9 7 7 Treads 3 | . 22 . . . . . 1 Leg 12 | . 5 28 28 28 15 . . Wheel 20 | . . . . . 27 37 36 Device 6 | . 9 14 14 14 . 6 7 Storage 10 | . 14 14 14 14 9 7 7 Processor 4 | . . . . . 2 10 15 Protection 1 | . . . . . 4 . . Energy Cannon 2 | . 2 28 3 7 . . . Ballistic Gun 3 | . 23 . . . . . . Impact Weapon 3 | . . . . . 8 1 . Slashing Weapon 6 | . . . . . 8 12 2 Peak Build Rating 39 | 6 7 8 8 7 27 37 39 Average Rating 19 | 4 6 7 6 6 21 33 36 On Entrance 12 | . 6 7 8 6 7 26 37 Avg Prop Armor Cover (%) 16 | . 11 . . . 19 . 1 Naked Turns . | . . . . . . . . Heaviest Build 231 | 13 22 32 32 29 216 231 224 Greatest Support 62 | 40 40 20 20 20 62 62 62 Greatest Overweight (x) 20 | . 1 1 1 1 20 4 5 Average Overweight (x) 2 | . . 1 1 1 5 3 4 Largest Inventory Capacity 35 | 8 10 15 15 15 35 35 35 Average Capacity 25 | 7 8 11 15 15 32 35 35 Most Carried 35 | 4 9 10 15 15 35 35 35 Average Carried 21 | 1 6 9 12 14 24 33 34 Final Capacity 35 | 8 10 15 15 15 35 35 35 Final Carried 35 | 4 9 10 15 15 34 35 33 Class Distribution -------------------- 40% | Hauler-Mutant 38% | Mutant 20% | Hauler-Gladiator Dominant Class ---------------- Mutant | -10/Materials Mutant | -10/Mines Mutant | -10/Exiles Mutant | -9/Mines Hauler-Mutant | -8/Materials Hauler-Mutant | -7/Factory Hauler-Mutant | -7/Waste Resources | -11 -10 -10 -10 -9 -8 -7 -7 ----------- Run | Yrd Mat Min Exi Min Mat Fac Was Matter Collected 2134 | 257 344 161 . 98 545 579 150 Remotely . | . . . . . . . . Salvage Created 3512 | 26 397 . . . 2339 750 . Parts 182 | 5 23 . . . 99 55 . Haulers Intercepted 6 | . 1 . . . 4 1 . Recyclers Shooed . | . . . . . . . . Parts Field Recycled . | . . . . . . . . Retrieved Matter . | . . . . . . . . Parts Self-Destructed . | . . . . . . . . Prevented . | . . . . . . . . Parts Restored . | . . . . . . . . Kills | -11 -10 -10 -10 -9 -8 -7 -7 ------- Run | Yrd Mat Min Exi Min Mat Fac Was Combat Hostiles Destroyed 57 | . 10 . . . 32 15 . Melee 26 | . . . . . 22 4 . Guns 10 | . 10 . . . . . . AOE 15 | . . . . . 4 11 . Classes Destroyed 13 | 1 4 . . . 6 2 . Worker 19 | . 1 . . . 12 6 . Builder 7 | . . . . . 2 5 . Tunneler 1 | 1 . . . . . . . Hauler 6 | . 1 . . . 4 1 . Recycler 8 | . . . . . 8 . . Mechanic 1 | . . . . . . 1 . Operator 2 | . . . . . 2 . . Watcher 2 | . . . . . 2 . . Swarmer 22 | . 3 . . . 9 10 . Grunt 27 | . 7 . . . 18 2 . Duelist 1 | . . . . . 1 . . Sentry 4 | . . . . . 4 . . Programmer 3 | . . . . . . 3 . Best Kill Streak 6 | 1 3 . . . 6 5 . Combat Bots Only 6 | . 2 . . . 6 4 . Max Kills in Single Turn 4 | 1 1 . . . 4 4 . Gunslinging . | . . . . . . . . Exploded 3 | . . . . . 3 3 . Melee 1 | . . . . . 1 1 . Uniques/NPCs Destroyed . | . . . . . . . . Combat | -11 -10 -10 -10 -9 -8 -7 -7 -------- Run | Yrd Mat Min Exi Min Mat Fac Was Hostile Shots Fired 253 | . 79 . . . 86 85 3 Missed 70 | . 22 . . . 26 21 1 Hits 183 | . 57 . . . 60 64 2 Melee 3 | . . . . . 1 . 2 Projectile 180 | . 57 . . . 59 64 . Critical Strikes 6 | . . . . . 2 4 . Damage Taken 3175 | . 569 . . . 856 1653 97 Core 523 | . 47 . . . 129 347 . Absorbed by Shields . | . . . . . . . . Redirected to Shielding 6 | . . . . . 6 . . Core Remaining (%) 85 | 100 . . . 81 76 . . Volleys Fired 90 | 1 51 . . . 4 19 15 Largest 2 | 2 2 . . . 1 1 2 Hottest 120 | 40 120 . . . 60 36 74 Shots Fired 155 | 2 100 . . 1 4 19 29 Gun 94 | 2 92 . . . . . . Cannon 40 | . 8 . . 1 2 . 29 Launcher 21 | . . . . . 2 19 . Special . | . . . . . . . . Kinetic 118 | 2 87 . . . . . 29 Thermal 16 | . 13 . . 1 2 . . Explosive 7 | . . . . . 2 5 . Electromagnetic 14 | . . . . . . 14 . Robot Hit Streak 13 | . 13 . . . 2 3 9 Robot Miss Streak 8 | . 3 . . 3 . 3 8 Penetration Max . | . . . . . . . . Secondary Targets . | . . . . . . . . Shots Hit Robots 223 | . 64 . . . 89 43 27 Core Hits 100 | 1 19 . . . 40 27 13 Critical Kills . | . . . . . . . . Critical Parts Destroyed 7 | . . . . . 7 . . Critical Strikes 14 | . . . . . 11 3 . Smash 7 | . . . . . 7 . . Sever 7 | . . . . . 4 3 . Melee Attacks 198 | . . . . . 121 75 2 Impact 61 | . . . . . 57 4 . Slashing 136 | . . . . . 64 70 2 Piercing . | . . . . . . . . Sneak Attacks 45 | . . . . . 31 14 . Combat Hostiles . | . . . . . . . . Follow-up Attacks 20 | . . . . . 12 8 . Damage Inflicted 9424 | 13 715 . . . 4985 2976 735 Guns 676 | 13 663 . . . . . . Cannons 805 | . 52 . . . 18 . 735 Explosions 1442 | . . . . . 331 1111 . Melee 6501 | . . . . . 4636 1865 . Ramming . | . . . . . . . . Kinetic 1362 | 13 614 . . . . . 735 Thermal 192 | . 101 . . . 18 73 . Explosive 705 | . . . . . 331 374 . Electromagnetic 664 | . . . . . . 664 . Impact 2023 | . . . . . 1829 194 . Slashing 4478 | . . . . . 2807 1671 . Piercing . | . . . . . . . . Highest Corruption 20 | . 2 2 2 2 . 20 20 Average Corruption 5 | . 2 2 2 2 . 6 20 Corruption Purged . | . . . . . . . . Corruption Blocked . | . . . . . . . . Effects 52 | . 1 1 5 8 . 27 10 Message Errors 11 | . . . . 3 . 6 2 Matter Fused 16 | . . 1 2 1 . 12 . Heat Flow Errors 5 | . . . 1 1 . 1 2 Energy Discharges 10 | . . . 1 1 . 6 2 Parts Fused 1 | . . . . . . . 1 Data Loss (minor) 5 | . 1 . 1 1 . 1 1 Data Loss (major) 1 | . . . . . . 1 . Misfires 1 | . . . . 1 . . . Misdirections 1 | . . . . . . . 1 Weapon Failures 1 | . . . . . . . 1 Overload Shots . | . . . . . . . . Overflow Damage 1513 | . . . . . 1163 350 . Projectiles . | . . . . . . . . Explosions 103 | . . . . . 48 55 . Melee 1410 | . . . . . 1115 295 . Knockbacks 10 | . . . . . 10 . . Impact 9 | . . . . . 9 . . Kinetic . | . . . . . . . . Secondary 1 | . . . . . 1 . . Self-Inflicted Damage 56 | . . . . . . 56 . Shots 3 | . . . . . . 3 . Rammed . | . . . . . . . . Targets Rammed . | . . . . . . . . Kicked . | . . . . . . . . Crushed . | . . . . . . . . Highest Temperature 225 | . 60 . 181 195 6 165 225 Average Temperature 52 | . 14 . 93 85 5 72 96 Received Heat Transfer 666 | . 216 . . . 369 81 . Siege Activations . | . . . . . . . . Martial Activations . | . . . . . . . . Shielding Activations . | . . . . . . . . Robots Disrupted . | . . . . . . . . Combat Hostiles . | . . . . . . . . Robots Corrupted 12 | . . . . . 11 1 . Combat Hostiles 6 | . . . . . 6 . . Parts Fried 23 | . . . . . 20 3 . Impact Corruptions 25 | . . . . . 22 3 . Robots Melted . | . . . . . . . . Combat Hostiles . | . . . . . . . . Parts Melted 1 | . . . . . . 1 . Heat Transferred 396 | . 259 . . . 37 100 . Parts Sabotaged . | . . . . . . . . Parts Stolen . | . . . . . . . . Parts Stripped . | . . . . . . . . Power Chain Reactions 3 | . . . . . . 3 . Alert | -11 -10 -10 -10 -9 -8 -7 -7 ------- Run | Yrd Mat Min Exi Min Mat Fac Was Maximum Alert Level 2 | . . . . . 2 2 . Low Security (%) 47 | 100 100 100 . 100 32 2 100 Level 1 39 | . . . . . 37 96 . Level 2 13 | . . . . . 29 1 . Level 3 . | . . . . . . . . Level 4 . | . . . . . . . . Level 5 . | . . . . . . . . High Security . | . . . . . . . . Max Security . | . . . . . . . . Peak Influence 668 | 5 66 14 . . 668 405 122 Initial 301 | . . 14 . . . 301 122 Average 210 | 1 24 1 . . 300 308 68 Influence Increases 2195 | 5 294 . . . 1307 587 2 Destroy 0b10 Robot/C 1160 | . 200 . . . 660 300 . Destroy 0b10 Robot/NC 230 | 5 10 . . . 150 65 . Destroy Leader 206 | . 32 . . . 132 42 . Allied During Kill 2 | . . . . . 2 . . Successful Hack 60 | . 7 . . . 25 28 . Select Force Hacks 30 | . 30 . . . . . . Disable Machine 75 | . 15 . . . 15 45 . Anti-Garrison Action 200 | . . . . . 200 . . Destroy Structure 67 | . . . . . 18 47 2 Lose Combat Pursuer 165 | . . . . . 105 60 . Influence Decreases 2191 | 5 257 37 . . 643 901 348 Entered New Map 614 | . . 23 . . . 363 228 Time Decay 1392 | 5 227 14 . . 568 478 100 Lost Part 160 | . 30 . . . 50 60 20 Lost Ally 25 | . . . . . 25 . . Squads Dispatched 16 | . 2 . . . 4 10 . Investigation 5 | . 2 . . . 1 2 . Extermination 3 | . . . . . . 3 . Reinforcement 5 | . . . . . 3 2 . Assault . | . . . . . . . . Garrison 3 | . . . . . . 3 . Intercept . | . . . . . . . . Searches Triggered . | . . . . . . . . Construction Impeded 1 | . . . . . 1 . . Haulers Reinforced 1 | . . . . . . 1 . Active Scanning Responses . | . . . . . . . . Cargo Convoy Interrupts 1 | . . . . . . 1 . Stealth | -11 -10 -10 -10 -9 -8 -7 -7 --------- Run | Yrd Mat Min Exi Min Mat Fac Was Distress Signals 7 | . . . . . 6 1 . Communications Jammed . | . . . . . . . . Distress Signals . | . . . . . . . . Times Spotted 102 | . 12 . . . 52 33 5 Peak Tracking Total 8 | . 3 . . . 6 8 5 Tactical Retreats 9 | . . . . . 7 2 . Traps | -11 -10 -10 -10 -9 -8 -7 -7 ------- Run | Yrd Mat Min Exi Min Mat Fac Was Traps Triggered 8 | . 2 . . . 1 5 . Indirectly . | . . . . . . . . Trap Hack Attempts . | . . . . . . . . Triggered . | . . . . . . . . Disarmed . | . . . . . . . . Reprogrammed . | . . . . . . . . Reused . | . . . . . . . . Traps Extracted . | . . . . . . . . Installed . | . . . . . . . . Triggered . | . . . . . . . . Machines | -11 -10 -10 -10 -9 -8 -7 -7 ---------- Run | Yrd Mat Min Exi Min Mat Fac Was Machines Disabled 5 | . 1 . . . 1 3 . Max in Single Turn 1 | . 1 . . . 1 1 . Garrison Access 2 | . . . . . 1 1 . Machines Repaired . | . . . . . . . . Machines Dismantled . | . . . . . . . . Machines Sabotaged . | . . . . . . . . Overloaded Fab Kills . | . . . . . . . . Hacking | -11 -10 -10 -10 -9 -8 -7 -7 --------- Run | Yrd Mat Min Exi Min Mat Fac Was Machines Accessed 16 | . 3 . 1 . 6 6 . Terminals 9 | . 2 . . . 4 3 . Fabricators 1 | . . . . . . 1 . Repair Stations . | . . . . . . . . Recycling Units 1 | . 1 . . . . . . Scanalyzers 1 | . . . . . 1 . . Garrison Access 3 | . . . . . 1 2 . Total Hacks 37 | . 7 . 4 . 13 13 . Successful 18 | . 2 . 4 . 7 5 . Failed 18 | . 5 . . . 5 8 . Catastrophic 6 | . 2 . . . 1 3 . Database Lockouts 1 | . . . . . 1 . . Manual 16 | . 7 . . . 5 4 . Terminals 21 | . 6 . . . 6 9 . Fabricators 2 | . . . . . . 2 . Repair Stations . | . . . . . . . . Recycling Units 1 | . 1 . . . . . . Scanalyzers 4 | . . . . . 4 . . Garrison Access 5 | . . . . . 3 2 . Terminal Hacks 9 | . 1 . 4 . 3 1 . Record 4 | . . . 4 . . . . Part Schematic 1 | . 1 . . . . . . Fabricator Index 1 | . . . . . . 1 . Hauler Manifests 1 | . . . . . 1 . . Registered Components 2 | . . . . . 2 . . Fabricator Hacks 2 | . . . . . . 2 . Load Schematic 1 | . . . . . . 1 . Build 1 | . . . . . . 1 . Repair Station Hacks . | . . . . . . . . Recycling Unit Hacks . | . . . . . . . . Scanalyzer 3 | . . . . . 3 . . Retrieve Study 3 | . . . . . 3 . . Garrison Access Hacks 1 | . . . . . . 1 . Seal Access 1 | . . . . . . 1 . Unauthorized Hacks 3 | . 1 . . . 1 1 . Terminals 1 | . . . . . . 1 . Botnet 1 | . . . . . . 1 . Fabricators . | . . . . . . . . Repair Stations . | . . . . . . . . Recycling Units 1 | . 1 . . . . . . Tunnel 1 | . 1 . . . . . . Scanalyzers . | . . . . . . . . Garrison Access 1 | . . . . . 1 . . Jam 1 | . . . . . 1 . . Data Cores Recovered . | . . . . . . . . Used . | . . . . . . . . Hacking Detections 11 | . 2 . . . 4 5 . Full Trace Events 4 | . 2 . . . . 2 . Feedback Events . | . . . . . . . . Feedback Blocked . | . . . . . . . . Robot Schematics Acquired . | . . . . . . . . Robots Built . | . . . . . . . . Authchips . | . . . . . . . . Time . | . . . . . . . . Total Robot Build Rating . | . . . . . . . . Part Schematics Acquired 1 | . 1 . . . . . . Parts Built 1 | . . . . . . 1 . Authchips . | . . . . . . . . Time 51 | . . . . . . 51 . Total Part Build Rating 1 | . . . . . . 1 . Part Studies Acquired 3 | . . . . . 3 . . Parts Repaired . | . . . . . . . . Time . | . . . . . . . . Parts Recycled . | . . . . . . . . Recycled Matter . | . . . . . . . . Retrieved Matter . | . . . . . . . . Retrieved Components . | . . . . . . . . Parts Scanalyzed . | . . . . . . . . Part Schematics Acquired . | . . . . . . . . Parts Damaged . | . . . . . . . . Bothacking | -11 -10 -10 -10 -9 -8 -7 -7 ------------ Run | Yrd Mat Min Exi Min Mat Fac Was Used RIF Installer . | . . . . . . . . Robots Hacked 1 | . . . . . . 1 . Non-combat 1 | . . . . . . 1 . Combat . | . . . . . . . . Robot Hacks Applied 1 | . . . . . . 1 . find_chute 1 | . . . . . . 1 . Relay Couplers Released . | . . . . . . . . Fabnet Peak Effective % . | . . . . . . . . Robots Rewired . | . . . . . . . . Allies Hacked . | . . . . . . . . Hacks Repelled . | . . . . . . . . Allies | -11 -10 -10 -10 -9 -8 -7 -7 -------- Run | Yrd Mat Min Exi Min Mat Fac Was Total Allies 2 | . . . . 2 . . . Largest Group 2 | . . . . 2 2 . . Highest-Rated Group 42 | . . . . 42 42 . . Highest-Rated Ally 31 | . . . . 31 31 . . Total Orders . | . . . . . . . . Ally Attacks 7 | . . . . . 7 . . Total Damage 107 | . . . . . 107 . . Kills 1 | . . . . . 1 . . Allies Corrupted . | . . . . . . . . Allies Melted . | . . . . . . . . Intel | -11 -10 -10 -10 -9 -8 -7 -7 ------- Run | Yrd Mat Min Exi Min Mat Fac Was Active Infowar (turns) 1189 | . . . . . . 1167 22 Sensors 1189 | . . . . . . 1167 22 Robot Analysis Total . | . . . . . . . . Derelict Logs Recovered 2 | . . 2 . . . . . Drone Launches . | . . . . . . . . Drone Recoveries . | . . . . . . . . Exploration | -11 -10 -10 -10 -9 -8 -7 -7 ------------- Run | Yrd Mat Min Exi Min Mat Fac Was Turns Passed 5604 | 83 739 280 499 358 2198 1228 219 Spaces Moved 2703 | 44 275 146 261 187 976 709 105 Core 2 | 2 . . . . . . . Treads 235 | 42 193 . . . . . . Legs 804 | . 82 146 261 187 128 . . Wheels 1662 | . . . . . 848 709 105 Hover . | . . . . . . . . Flight . | . . . . . . . . Fastest Speed 50 | 50 120 190 190 190 119 119 123 Average Speed 157 | 155 153 190 190 190 167 121 134 Slowest Speed 470 | 160 190 190 190 190 470 135 158 Overloaded Moves . | . . . . . . . . Propulsion Burnouts . | . . . . . . . . Robots Hopped . | . . . . . . . . Potential Cave-ins 12 | . . . . . . 12 . Cave-ins Triggered 2 | . . . . . . 2 . Exploration Rate (%) 34 | 5 42 40 54 48 49 22 16 Regions Visited 7 Branch Regions 3 Pre-discovered Areas 4 | . 1 2 1 . . . . Known Exits Taken . | . . . . . . . . Unknown Exits Taken 6 | 1 1 1 1 1 1 . . Scrap Searched 2 | . . 1 . 1 . . . Spaces Dug 22 | . . . . . . 20 2 Terrain Destroyed 89 | . . . . . 18 69 2 Melee 22 | . . . . . . 20 2 Projectile . | . . . . . . . . AOE 67 | . . . . . 18 49 . Terrain Rammed . | . . . . . . . . Walls Destroyed . | . . . . . . . . Machines Disabled . | . . . . . . . . Actions | -11 -10 -10 -10 -9 -8 -7 -7 --------- Run | Yrd Mat Min Exi Min Mat Fac Was Total 3670 | 54 495 150 267 190 1422 948 144 Wait 420 | . 141 . . 2 215 54 8 Move 2696 | 43 274 145 260 186 975 708 105 Hop . | . . . . . . . . Pick Up 92 | 4 8 2 2 1 48 26 1 Fast Attach 38 | 6 7 . . . 16 9 . Attach 28 | . 3 . . 1 9 13 2 Detach 6 | . . . 2 . 1 3 . Swap 54 | . 7 1 1 . 13 22 10 Drop 81 | . 4 2 2 . 42 30 1 Fire 90 | 1 51 . . . 4 19 15 Melee 164 | . . . . . 99 63 2 Ram . | . . . . . . . . Kick . | . . . . . . . . Crush . | . . . . . . . . Escape Stasis 1 | . . . . . . 1 . Rewire . | . . . . . . . . Trap . | . . . . . . . . Miscellaneous . | . . . . . . . . Route ------- -11/Scrapyard -10/Materials (discovered 2 exits: [*Mat] / [*Min]) -10/Mines -10/Exiles -9/Mines -8/Materials -7/Factory -7/Waste History --------- Turn | Location | Event 6 | -11/Scrapyard | Discovered new exit (range 15) 84 | -11/Scrapyard | Entered Materials 321 | -10/Materials | Build established: Mutant 457 | -10/Materials | Discovered new exit (range 16) 688 | -10/Materials | Lost 3 parts (1p1n1w) 782 | -10/Materials | Discovered new exit (range 16) 823 | -10/Materials | Entered Mines 885 | -10/Mines | Received a Rocket Launcher from a helpful Derelict 974 | -10/Mines | Learned location of Storage (-7) 1095 | -10/Mines | Deemed a non-threat by the Exiles lab entrance 1095 | -10/Mines | Discovered new exit (range 5) 1103 | -10/Mines | Entered Exiles 1151 | -10/Exiles | Met 8R-AWN 1182 | -10/Exiles | Met EX-HEX 1256 | -10/Exiles | Met EX-DEC 1270 | -10/Exiles | Learned location of Zion (-6) 1304 | -10/Exiles | Met EX-BIN 1587 | -10/Exiles | Discovered new exit (range 10) 1602 | -10/Exiles | Entered Mines 1649 | -9/Mines | Assembled infested the area 1654 | -9/Mines | Assisted by a Guerilla fighting off Assembled 1656 | -9/Mines | Found a Scrap Suit stashed away for nefarious purposes 1759 | -9/Mines | A weapon hastily lodged in a ceiling crevice suddenly fell to the ground 1927 | -9/Mines | Discovered new exit (range 13) 1960 | -9/Mines | Entered Materials 1960 | -8/Materials | Accompanied by 2 allies 1960 | -8/Materials | Evolved 4 slots: Propulsion x3, Utility x1 1965 | -8/Materials | Led the pair of lost Derelicts to an unsafe place 2490 | -8/Materials | Build established: Hauler-Mutant 3176 | -8/Materials | Discovered new exit (range 5) 3917 | -8/Materials | Build established: Hauler-Gladiator 3944 | -8/Materials | Central database locked down 4158 | -8/Materials | Entered Factory 4158 | -7/Factory | Evolved 2 slots: Utility x2 4163 | -7/Factory | Discovered new exit (range 16) 4180 | -7/Factory | Identified exit to Factory 4623 | -7/Factory | Allied Derelicts emerged from ambush trap array 4896 | -7/Factory | Fabricated Cargo Storage Unit (x1) 5007 | -7/Factory | Build established: Hauler-Mutant 5007 | -7/Factory | Garrison activated, responded to threat 5141 | -7/Factory | Cargo convoy interrupted 5168 | -7/Factory | System corruption reached 10% 5198 | -7/Factory | Crushed by falling debris 5201 | -7/Factory | Crushed by falling debris 5232 | -7/Factory | Lost 4 parts (1p3n) 5386 | -7/Factory | Sucked down chute 5386 | -7/Factory | Entered Waste 5425 | -7/Waste | Spotted C-40 Crusher 5451 | -7/Waste | Spotted C-40 Crusher 5497 | -7/Waste | Spotted C-40 Crusher 5498 | -7/Waste | Spotted C-40 Crusher 5503 | -7/Waste | Crushed by Compactor (1 part destroyed, 1 dropped) 5526 | -7/Waste | Spotted C-40 Crusher 5604 | -7/Waste | Crushed by Compactor (1 part destroyed, 1 dropped) 5605 | -7/Waste | Self-destructed Last Messages --------------- 05386_ A hatch slides open and sucks a vortex of air into the floor. LOCATION=UNKNOWN GOAL=ESCAPE 05397_ System corrupted: Heat flow error (+253). 05412_ System corrupted: Energy discharge (-88). 05442_ Broken Imp. Field Recycling Unit crushed. 05443_ System corrupted: Heat flow error (+146). 05465_ LB9UKCPLBGIH O:>HT =&COJPZF4 05481_ System corrupted: Flak Cannon jammed. 05484_ System corrupted: Flak Cannon fused. 05501_ System corrupted: Component data lost. 05503_ Wheel+ crushed. 05513_ Dropped Com. Matter Pod. 05514_ Extracted 150 matter. 05515_ Acquired Com. Matter Pod. 05559_ System corrupted: Energy discharge (-81). 05585_ 4QAOV